fUST/lending_fUST_20260101
["ID","MTS","AMOUNT","RATE_DAILY","PERIOD"]
[400245826,1767215455488,-1041.66666667,0.00033,120]
[400245827,1767215455498,-163.988889,0.00033,31]
[400245828,1767215455507,-163.988889,0.00033,31]
[400245829,1767215455516,-163.988889,0.00033,31]
[400245830,1767215455525,-163.988889,0.00033,31]
[400245831,1767215455535,-151.0,0.00033,31]
[400245832,1767215455544,-158.892051,0.00033,31]
[400245833,1767215455553,-158.892051,0.00033,31]
[400245834,1767215455563,-158.892051,0.00033,31]
[400245835,1767215455572,-158.892051,0.00033,31]
[400245836,1767215455581,-254.088517,0.00033,31]
[400245837,1767215455591,-152.548448,0.00033,31]
[400245838,1767215455601,-152.548448,0.00033,31]
[400245839,1767215455611,-152.548448,0.00033,31]
[400245840,1767215455620,-152.548448,0.00033,31]
[400245841,1767215455630,-151.0,0.00033,31]
[400245842,1767215455640,-151.0,0.00033,31]
[400245843,1767215455650,-151.0,0.00033,31]
[400245844,1767215455659,-151.0,0.00033,31]
[400245845,1767215455668,-151.0,0.00033,31]
[400245846,1767215455677,-151.0,0.00033,31]
[400245847,1767215455687,-151.0,0.00033,31]
[400245848,1767215455696,-151.0,0.00033,31]
[400245849,1767215455705,-1888.298719,0.00033,31]
[400245850,1767215455715,-1888.298719,0.00033,31]
[400245851,1767215455724,-1888.298719,0.00033,31]
[400245852,1767215455733,-1888.298719,0.00033,31]
[400245853,1767215455742,-184.533996,0.00033,31]
[400245854,1767215455751,-229.240196,0.00033,31]
[400245855,1767215455761,-237.965495,0.00033,31]
[400245856,1767215455771,-237.965495,0.00033,31]
[400245857,1767215455781,-237.965495,0.00033,31]
[400245858,1767215455791,-242.224845,0.00033,31]
[400245859,1767215455800,-237.965495,0.00033,31]
[400245860,1767215455810,-242.224845,0.00033,31]
[400245861,1767215455819,-242.224845,0.00033,31]
[400245862,1767215455829,-242.224845,0.00033,31]
[400245863,1767215455838,-1062.636171,0.00033,31]
[400245864,1767215455848,-1062.636171,0.00033,31]
[400245865,1767215455857,-1062.636171,0.00033,31]
[400245866,1767215455867,-1062.636171,0.00033,31]
[400245867,1767215455877,-151.0,0.00033,31]
[400245868,1767215455887,-185.705929,0.00033,31]
[400245869,1767215455897,-151.0,0.00033,31]
[400245870,1767215455907,-151.0,0.00033,31]
[400245871,1767215455919,-440.924061,0.00033,31]
[400245872,1767215455929,-440.924061,0.00033,31]
[400245873,1767215455939,-440.924061,0.00033,31]
[400245874,1767215455948,-440.924059,0.00033,31]
[400245875,1767215455960,-151.0,0.00033,31]
[400245876,1767215455970,-151.0,0.00033,31]
[400245877,1767215455980,-612.575308,0.00033,31]
[400245878,1767215455989,-612.575308,0.00033,31]
[400245879,1767215455998,-612.575308,0.00033,31]
[400245880,1767215456008,-612.575314,0.00033,31]
[400245881,1767215456017,-151.0,0.00033,31]
[400245882,1767215456027,-151.0,0.00033,31]
[400245883,1767215456037,-805.861522,0.00033,31]
[400245884,1767215456046,-805.861522,0.00033,31]
[400245885,1767215456056,-805.861522,0.00033,31]
[400245886,1767215456066,-151.0,0.00033,31]
[400245887,1767215456077,-805.861521,0.00033,31]
[400245888,1767215456086,-151.0,0.00033,31]
[400245889,1767215456096,-151.0,0.00033,31]
[400245890,1767215456105,-151.0,0.00033,31]
[400245891,1767215456114,-151.0,0.00033,31]
[400245892,1767215456124,-151.0,0.00033,31]
[400245893,1767215456134,-1559.059603,0.00033,31]
[400245894,1767215456143,-1559.059603,0.00033,31]
[400245895,1767215456153,-1559.059603,0.00033,31]
[400245896,1767215456162,-1559.059599,0.00033,31]
[400245897,1767215456171,-1017.21903832,0.00033,7]
[400245898,1767215456181,-394.521351,0.00033,31]
[400245899,1767215456190,-394.521351,0.00033,31]
[400245900,1767215456199,-394.521351,0.00033,31]
[400245901,1767215456209,-394.521344,0.00033,31]
[400245902,1767215456218,-151.0,0.00033,31]
[400245903,1767215456228,-151.0,0.00033,31]
[400245904,1767215456238,-151.0,0.00033,31]
[400245905,1767215456247,-197.835449,0.00033,31]
[400245906,1767215456257,-197.835449,0.00033,31]
[400245907,1767215456267,-151.0,0.00033,31]
[400245908,1767215456276,-197.835449,0.00033,31]
[400245909,1767215456286,-197.835443,0.00033,31]
[400245910,1767215456295,-754.40778,0.00033,31]
[400245911,1767215456304,-754.40778,0.00033,31]
[400245912,1767215456314,-156.562526,0.00033,31]
[400245913,1767215456324,-754.40778,0.00033,31]
[400245914,1767215456333,-754.407788,0.00033,31]
[400245915,1767215456342,-5000.0,0.00033121,2]
[400245916,1767215456352,-916.36,0.0003315,34]
[400245917,1767215456362,-958.576643,0.00033165,2]
[400245918,1767215456371,-179.95097548,0.000332,117]
[400245919,1767215456381,-179.95097547,0.000332,117]
[400245920,1767215456391,-3147.76375777,0.00033212,2]
[400245921,1767215456401,-160.0,0.0003322,13]
[400245922,1767215456410,-2863.2521,0.0003322,30]
[400245923,1767215456420,-369.0,0.00033226,30]
[400245924,1767215456430,-825.65138265,0.00033242,2]
[400245925,1767215456440,-2000.0,0.00033268,7]
[400245926,1767215456449,-1004.98248976,0.00033425,5]
[400245927,1767215456459,-416.0,0.00033556,2]
[400245928,1767215456468,-416.0,0.00033556,2]
[400245929,1767215456478,-150.0,0.00033556,2]
[400245930,1767215456487,-916.36,0.00033698,35]
[400245931,1767215456496,-250.0,0.00033699,5]
[400245932,1767215456506,-200.26076,0.000337,120]
[400245933,1767215456516,-150.94,0.000337,2]
[400245934,1767215456525,-177.35,0.000337,2]
[400245935,1767215456535,-176.02,0.000337,7]
[400245936,1767215456545,-1920.8654385,0.000337,2]
[400245937,1767215456554,-260.8204353,0.000337,2]
[400245938,1767215456565,-160.0,0.00033743,14]
[400245939,1767215456575,-295.735,0.000338,20]
[400245940,1767215456584,-295.73,0.000338,20]
[400245941,1767215456594,-1430.86618739,0.000339,120]
[400245942,1767215456603,-162.37843672,0.000339,120]
[400245943,1767215456613,-376.3998898,0.00033945,30]
[400245944,1767215456623,-303.4572356,0.00033973,30]
[400245945,1767215456633,-599.7286954,0.00033973,30]
[400245946,1767215456643,-193.3811029,0.00033973,30]
[400245947,1767215456652,-193.3811029,0.00033973,30]
[400245948,1767215456661,-303.4572356,0.00033973,30]
[400245949,1767215456671,-599.7286954,0.00033973,30]
[400245950,1767215456680,-193.3811029,0.00033973,30]
[400245951,1767215456690,-303.4572356,0.00033973,30]
[400245952,1767215456699,-599.7286954,0.00033973,30]
[400245953,1767215456708,-303.4572356,0.00033973,30]
[400245954,1767215456717,-599.7286954,0.00033973,30]
[400245955,1767215456727,-193.3811029,0.00033973,30]
[400245956,1767215456736,-675.0642905,0.00033973,30]
[400245957,1767215456745,-599.7286954,0.00033973,30]
[400245958,1767215456755,-599.7286954,0.00033973,30]
[400245959,1767215456764,-193.3811029,0.00033973,30]
[400245960,1767215456773,-599.7286954,0.00033973,30]
[400245961,1767215456783,-599.7286954,0.00033973,30]
[400245962,1767215456793,-193.3811029,0.00033973,30]
[400245963,1767215456802,-599.7286954,0.00033973,30]
[400245964,1767215456811,-599.7286954,0.00033973,30]
[400245965,1767215456821,-193.3811029,0.00033973,30]
[400245966,1767215456830,-599.7286954,0.00033973,30]
[400245967,1767215456839,-599.7286954,0.00033973,30]
[400245968,1767215456849,-386.7622058,0.00033973,30]
[400245969,1767215456858,-599.7286954,0.00033973,30]
[400245970,1767215456868,-1199.4573908,0.00033973,30]
[400245971,1767215456877,-187.1804224,0.00033973,30]
[400245972,1767215456886,-599.7286954,0.00033973,30]
[400245973,1767215456896,-599.7286954,0.00033973,30]
[400245974,1767215456909,-599.7286954,0.00033973,30]
[400245975,1767215456919,-397.7732961,0.00033973,30]
[400245976,1767215456928,-153.0,0.00033973,30]
[400245977,1767215456937,-153.0,0.00033973,30]
[400245978,1767215456946,-614.92980998,0.00033976,120]
[400245979,1767215456957,-232.1,0.00033982,6]
[400245980,1767215456966,-1041.66666667,0.00034,30]
[400245981,1767215456977,-1016.0,0.00034,7]
[400245982,1767215456986,-3147.76375777,0.00034191,2]
[400245983,1767215456995,-1149.95,0.000342,30]
[400245984,1767215457005,-916.36,0.00034246,36]
[400245985,1767215457015,-160.0,0.00034266,15]
[400245986,1767215457030,-151.0,0.000343,31]
[400245987,1767215457040,-376.3998898,0.00034384,30]
[400245988,1767215457049,-376.3998898,0.00034384,30]
[400245989,1767215457059,-376.3998898,0.00034384,30]
[400245990,1767215457069,-376.3998898,0.00034384,30]
[400245991,1767215457079,-376.3998898,0.00034384,30]
[400245992,1767215457088,-376.3998898,0.00034384,30]
[400245993,1767215457097,-376.3998898,0.00034384,30]
[400245994,1767215457107,-376.3998898,0.00034384,30]
[400245995,1767215457117,-376.3998898,0.00034384,30]
[400245996,1767215457129,-376.3998898,0.00034384,30]
[400245997,1767215457138,-376.3998898,0.00034384,30]
[400245998,1767215457147,-376.3998898,0.00034384,30]
[400245999,1767215457157,-376.3998898,0.00034384,30]
[400246000,1767215457166,-376.3998898,0.00034384,30]
[400246001,1767215457176,-376.3998898,0.00034384,30]
[400246002,1767215457186,-151.19,0.00034432,60]
[400246003,1767215457195,-1481.02,0.0003447,60]
[400246004,1767215457205,-350.0,0.00034521,5]
[400246005,1767215457215,-151.0,0.00034521,31]
[400246006,1767215457224,-194.97163,0.00034521,31]
[400246007,1767215457233,-151.0,0.00034521,31]
[400246008,1767215457242,-169.466222,0.00034521,31]
[400246009,1767215457251,-169.466222,0.00034521,31]
[400246010,1767215457260,-169.466222,0.00034521,31]
[400246011,1767215457270,-169.466222,0.00034521,31]
[400246012,1767215457279,-151.19,0.00034532,60]
[400246013,1767215457289,-155.0,0.00034548,70]
[400246014,1767215457299,-1481.02,0.0003457,60]
[400246015,1767215457308,-9359.66,0.000346,14]
[400246016,1767215457318,-151.0,0.000346,31]
[400246017,1767215457327,-151.0,0.000346,31]
[400246018,1767215457336,-151.0,0.000346,31]
[400246019,1767215457346,-151.0,0.000346,31]
[400246020,1767215457356,-151.19,0.00034632,60]
[400246021,1767215457365,-2500.0,0.0003465,10]
[400246022,1767215457374,-151.0,0.0003465,31]
[400246023,1767215457384,-1481.02,0.0003467,60]
[400246024,1767215457394,-151.19,0.00034732,60]
[400246025,1767215457404,-1481.02,0.0003477,60]
[400246026,1767215457414,-160.0,0.00034788,16]
[400246027,1767215457424,-916.36,0.00034794,37]
[400246028,1767215457433,-153.0,0.00034795,30]
[400246029,1767215457442,-153.0,0.00034795,30]
[400246030,1767215457452,-153.0,0.00034795,30]
[400246031,1767215457461,-153.0,0.00034795,30]
[400246032,1767215457566,-153.0,0.00034795,30]
[400246033,1767215457577,-153.0,0.00034795,30]
[400246034,1767215457587,-153.0,0.00034795,30]
[400246035,1767215457597,-153.0,0.00034795,30]
[400246036,1767215457606,-153.0,0.00034795,30]
[400246037,1767215457616,-153.0,0.00034795,30]
[400246038,1767215457626,-153.0,0.00034795,30]
[400246039,1767215457635,-153.0,0.00034795,30]
[400246040,1767215457645,-153.0,0.00034795,30]
[400246041,1767215457655,-153.0,0.00034795,30]
[400246042,1767215457664,-153.0,0.00034795,30]
[400246043,1767215457674,-153.0,0.00034795,30]
[400246044,1767215457683,-307.6016492,0.00034795,30]
[400246045,1767215457692,-194605.26692343,0.000348,7]
[400246046,1767215457702,-151.21868735,0.00034832,60]
[400246047,1767215457711,-1481.02,0.0003487,60]
[400246048,1767215457720,-1430.86618739,0.000349,120]
[400246049,1767215457730,-1481.02,0.0003497,60]
[400246050,1767215457739,-161752.20116837,0.00034999,10]
[400246051,1767215458327,-202.91533128,0.00034999,10]
[400246052,1767215458339,-2326.24435221,0.00034999,10]
[400246053,1767215458351,-7677.43044814,0.00034999,10]
[400246054,1767215458360,-6464.17775431,0.00035,120]
[400246055,1767215458411,-151.0,0.00027397,7]
[400246056,1767215458420,-151.0,0.00027397,7]
[400246057,1767215458429,-151.0,0.00027397,7]
[400246058,1767215458439,-151.0,0.00027397,7]
[400246059,1767215458448,-151.0,0.00027397,7]
[400246060,1767215458457,-151.0,0.00028219,7]
[400246061,1767215458466,-151.0,0.00028219,7]
[400246062,1767215458476,-151.0,0.00028219,7]
[400246063,1767215458485,-151.0,0.00030501,31]
[400246064,1767215458494,-151.0,0.00033,31]
[400246065,1767215458504,-19385.81263763,0.00035,120]
[400246066,1767215458558,-66.06528257,0.00035,120]
[400246067,1767215458656,-151.0,0.00027397,7]
[400246068,1767215458666,-151.0,0.00027397,7]
[400246069,1767215458675,-117.18467264,0.00027397,7]
[400246070,1767215458690,-33.81532736,0.00027397,7]
[400246071,1767215458702,-151.0,0.00027397,7]
[400246072,1767215458711,-151.0,0.00027397,7]
[400246073,1767215458721,-151.0,0.00027397,7]
[400246074,1767215458730,-151.0,0.00027397,7]
[400246075,1767215458739,-287.808854,0.00027397,7]
[400246076,1767215458748,-151.0,0.00028219,7]
[400246077,1767215458757,-151.0,0.00028219,7]
[400246078,1767215458766,-151.0,0.00028219,7]
[400246079,1767215458776,-151.0,0.00030501,31]
[400246080,1767215458785,-151.0,0.00030501,31]
[400246081,1767215458794,-151.0,0.00030501,31]
[400246082,1767215458803,-42.39470096,0.00030501,31]
[400246083,1767215458814,-108.60529904,0.00030501,31]
[400246084,1767215458823,-151.0,0.00033,31]
[400246085,1767215458832,-151.0,0.00033,31]
[400246086,1767215458841,-59.70585885,0.00033,31]
[400246087,1767215458856,-91.29414115,0.00033,31]
[400246088,1767215458865,-151.0,0.00033,31]
[400246089,1767215458874,-9800.2252562,0.00035,120]
[400246090,1767215458884,-641.35815235,0.00035,120]
[400246091,1767215458895,-829.53625222,0.00035,120]
[400246092,1767215458911,-7070.28912534,0.00035,120]
[400246192,1767215801503,169.9057536,5.438e-05,2]
[400246292,1767216166785,3391.4962741,0.00010858,2]
[400246354,1767216379563,190.3949265,0.00010877,2]
[400246362,1767216430140,-320.72344591,0.00011114,2]
[400246363,1767216436074,-524.59138013,0.00011114,2]
[400246364,1767216448098,-4154.68517396,0.00011114,2]
[400246365,1767216448119,-200.0,0.00011203,3]
[400246366,1767216448141,-163.0609916,0.00011227,2]
[400246367,1767216448163,-580.0,0.00011364,2]
[400246368,1767216448183,-203.02005978,0.000118,2]
[400246369,1767216448207,-300.0,0.00011871,2]
[400246370,1767216448229,-300.0,0.00011871,2]
[400246371,1767216448251,-439.67161504,0.00011872,2]
[400246375,1767216487446,424.14630765,0.00010618,2]
[400246405,1767216548157,-5000.0,0.00011754,2]
[400246406,1767216548178,-177.71115013,0.00011765,2]
[400246407,1767216548199,-300.0,0.00011775,2]
[400246408,1767216548224,-37869.21886717,0.00011776,2]
[400246419,1767216573091,-1611.28796438,0.00011658,2]
[400246420,1767216573117,-91521.18211474,0.00011776,2]
[400246451,1767216632259,-58.28793112,0.00011775,2]
[400246452,1767216632271,-234.71206888,0.00011775,2]
[400246453,1767216632280,-112.52292988,0.00011775,2]
[400246454,1767216632291,-187.47707012,0.00011775,2]
[400246455,1767216632301,-21767.78595466,0.00011776,2]
[400246456,1767216632310,-60.32838496,0.00011872,2]
[400246457,1767216632319,-182.412,0.00011873,2]
[400246458,1767216632328,-500.0,0.00011875,2]
[400246460,1767216632337,-500.0,0.00011875,2]
[400246461,1767216632347,-500.0,0.00011875,2]
[400246462,1767216632356,-500.0,0.00011875,2]
[400246463,1767216632367,-389.6531749,0.00011875,2]
[400246464,1767216632376,-500.0,0.00011875,2]
[400246465,1767216632386,-500.0,0.00011875,2]
[400246467,1767216632395,-500.0,0.00011875,2]
[400246469,1767216632407,-500.0,0.00011875,2]
[400246470,1767216632416,-500.0,0.00011875,2]
[400246472,1767216632425,-500.0,0.00011875,2]
[400246474,1767216632436,-500.0,0.00011875,2]
[400246476,1767216632445,-500.0,0.00011875,2]
[400246477,1767216632456,-500.0,0.00011875,2]
[400246479,1767216632465,-500.0,0.00011875,2]
[400246480,1767216632474,-500.0,0.00011875,2]
[400246482,1767216632485,-500.0,0.00011875,2]
[400246484,1767216632494,-500.0,0.00011875,2]
[400246485,1767216632505,-500.0,0.00011875,2]
[400246486,1767216632515,-500.0,0.00011875,2]
[400246487,1767216632525,-500.0,0.00011875,2]
[400246488,1767216632534,-500.0,0.00011875,2]
[400246489,1767216632543,-500.0,0.00011875,2]
[400246490,1767216632684,-500.0,0.00011875,2]
[400246491,1767216632694,-297.86535218,0.00011875,2]
[400246492,1767216632704,-500.0,0.00011875,2]
[400246493,1767216632713,-500.0,0.00011875,2]
[400246494,1767216632723,-500.0,0.00011875,2]
[400246495,1767216632732,-500.0,0.00011875,2]
[400246496,1767216632742,-500.0,0.00011875,2]
[400246497,1767216632751,-500.0,0.00011875,2]
[400246498,1767216632761,-500.0,0.00011875,2]
[400246499,1767216632771,-500.0,0.00011875,2]
[400246500,1767216632780,-500.0,0.00011875,2]
[400246501,1767216632790,-500.0,0.00011875,2]
[400246502,1767216632799,-500.0,0.00011875,2]
[400246503,1767216632809,-500.0,0.00011875,2]
[400246504,1767216632819,-500.0,0.00011875,2]
[400246505,1767216632828,-500.0,0.00011875,2]
[400246506,1767216632838,-500.0,0.00011875,2]
[400246507,1767216632847,-500.0,0.00011875,2]
[400246508,1767216632857,-500.0,0.00011875,2]
[400246509,1767216632866,-500.0,0.00011875,2]
[400246510,1767216632876,-500.0,0.00011875,2]
[400246511,1767216632885,-500.0,0.00011875,2]
[400246512,1767216632895,-500.0,0.00011875,2]
[400246513,1767216632905,-415.68565123,0.00011875,2]
[400246514,1767216632914,-500.0,0.00011875,2]
[400246515,1767216632923,-500.0,0.00011875,2]
[400246516,1767216632932,-500.0,0.00011875,2]
[400246517,1767216632942,-500.0,0.00011875,2]
[400246518,1767216632952,-500.0,0.00011875,2]
[400246519,1767216632961,-500.0,0.00011875,2]
[400246520,1767216632970,-500.0,0.00011875,2]
[400246521,1767216632979,-500.0,0.00011875,2]
[400246522,1767216632988,-500.0,0.00011875,2]
[400246523,1767216632997,-191.51983985,0.00011875,2]
[400246524,1767216633006,-500.0,0.00011875,2]
[400246525,1767216633016,-500.0,0.00011875,2]
[400246526,1767216633026,-500.0,0.00011875,2]
[400246527,1767216633035,-500.0,0.00011875,2]
[400246528,1767216633047,-500.0,0.00011875,2]
[400246529,1767216633056,-500.0,0.00011875,2]
[400246530,1767216633066,-500.0,0.00011875,2]
[400246531,1767216633075,-500.0,0.00011875,2]
[400246532,1767216633084,-500.0,0.00011875,2]
[400246533,1767216633094,-500.0,0.00011875,2]
[400246534,1767216633103,-500.0,0.00011875,2]
[400246535,1767216633112,-500.0,0.00011875,2]
[400246536,1767216633121,-500.0,0.00011875,2]
[400246537,1767216633130,-500.0,0.00011875,2]
[400246538,1767216633139,-500.0,0.00011875,2]
[400246539,1767216633148,-500.0,0.00011875,2]
[400246540,1767216633158,-500.0,0.00011875,2]
[400246541,1767216633167,-500.0,0.00011875,2]
[400246542,1767216633176,-450.0,0.00011875,2]
[400246543,1767216633186,-500.0,0.00011875,2]
[400246544,1767216633195,-500.0,0.00011875,2]
[400246545,1767216633204,-500.0,0.00011875,2]
[400246546,1767216633214,-500.0,0.00011875,2]
[400246547,1767216633224,-500.0,0.00011875,2]
[400246548,1767216633233,-207.7281329,0.00011875,2]
[400246549,1767216633242,-500.0,0.00011875,2]
[400246550,1767216633251,-500.0,0.00011875,2]
[400246551,1767216633260,-500.0,0.00011875,2]
[400246552,1767216633270,-404.46177883,0.00011875,2]
[400246553,1767216633280,-500.0,0.00011875,2]
[400246554,1767216633289,-500.0,0.00011875,2]
[400246555,1767216633298,-500.0,0.00011875,2]
[400246556,1767216633307,-500.0,0.00011875,2]
[400246557,1767216633317,-500.0,0.00011875,2]
[400246558,1767216633326,-500.0,0.00011875,2]
[400246559,1767216633335,-500.0,0.00011875,2]
[400246560,1767216633345,-500.0,0.00011875,2]
[400246561,1767216633354,-500.0,0.00011875,2]
[400246562,1767216633366,-500.0,0.00011875,2]
[400246563,1767216633376,-500.0,0.00011875,2]
[400246564,1767216633386,-500.0,0.00011875,2]
[400246565,1767216633396,-500.0,0.00011875,2]
[400246566,1767216633406,-298.46551253,0.00011875,2]
[400246567,1767216633416,-55.62406667,0.00011875,2]
[400246568,1767216633456,-444.37593333,0.00011875,2]
[400246569,1767216633465,-500.0,0.00011875,2]
[400246570,1767216633474,-500.0,0.00011875,2]
[400246571,1767216633483,-500.0,0.00011875,2]
[400246572,1767216633493,-500.0,0.00011875,2]
[400246573,1767216633502,-500.0,0.00011875,2]
[400246574,1767216633511,-350.0,0.00011875,2]
[400246575,1767216633521,-500.0,0.00011875,2]
[400246576,1767216633531,-151.0,0.000119,2]
[400246577,1767216633541,-151.0,0.000119,2]
[400246578,1767216633550,-151.0,0.000119,2]
[400246579,1767216633560,-151.0,0.000119,2]
[400246580,1767216633569,-604.72,0.00012329,2]
[400246581,1767216633579,-11638.58876615,0.000125,2]
[400246582,1767216633588,-500.0,0.00013273,2]
[400246583,1767216633598,-500.0,0.00013273,2]
[400246584,1767216633608,-500.0,0.00013273,2]
[400246585,1767216633619,-500.0,0.00013273,2]
[400246586,1767216633629,-500.0,0.00013273,2]
[400246587,1767216633639,-500.0,0.00013273,2]
[400246588,1767216633649,-500.0,0.00013273,2]
[400246589,1767216633658,-150.0,0.0001332,2]
[400246590,1767216633668,-219.21231561,0.00013658,2]
[400246591,1767216633678,-500.0,0.00013698,2]
[400246592,1767216633687,-500.0,0.00013698,2]
[400246593,1767216633696,-500.0,0.00013698,2]
[400246594,1767216633706,-500.0,0.00013698,2]
[400246595,1767216633715,-500.0,0.00013698,2]
[400246596,1767216633725,-500.0,0.00013698,2]
[400246597,1767216633735,-500.0,0.00013698,2]
[400246598,1767216633744,-500.0,0.00013698,2]
[400246599,1767216633754,-500.0,0.00013698,2]
[400246600,1767216633763,-500.0,0.00013698,2]
[400246601,1767216633773,-500.0,0.00013698,2]
[400246602,1767216633782,-500.0,0.00013698,2]
[400246603,1767216633792,-500.0,0.00013698,2]
[400246604,1767216633801,-500.0,0.00013698,2]
[400246605,1767216633810,-500.0,0.00013698,2]
[400246606,1767216633820,-500.0,0.00013698,2]
[400246607,1767216633830,-500.0,0.00013698,2]
[400246608,1767216633839,-500.0,0.00013698,2]
[400246609,1767216633849,-277.88486019,0.00013698,2]
[400246610,1767216633858,-579.678194,0.00013699,2]
[400246611,1767216633869,-500.0,0.00013699,2]
[400246612,1767216633878,-500.0,0.00013699,2]
[400246613,1767216633888,-500.0,0.00013699,2]
[400246614,1767216633897,-500.0,0.00013699,2]
[400246615,1767216633906,-500.0,0.00013699,2]
[400246616,1767216633916,-500.0,0.00013699,2]
[400246617,1767216633925,-500.0,0.00013699,2]
[400246619,1767216633935,-500.0,0.00013699,2]
[400246620,1767216633944,-500.0,0.00013699,2]
[400246621,1767216633954,-500.0,0.00013699,2]
[400246622,1767216633964,-500.0,0.00013699,2]
[400246623,1767216633973,-538.76397659,0.00013699,2]
[400246624,1767216633983,-500.0,0.00013699,2]
[400246625,1767216633992,-209.69915715,0.00013765,2]
[400246626,1767216634002,-497.40473471,0.00013821,2]
[400246627,1767216634011,-1000.0,0.00013821,2]
[400246628,1767216634021,-276.0052516,0.00014368,2]
[400246629,1767216634031,-225.87947709,0.00014411,2]
[400246630,1767216634040,-179.38,0.00014531,2]
[400246632,1767216634049,-269.07,0.00015742,2]
[400246633,1767216634059,-241.68716417,0.00015765,2]
[400246634,1767216634070,-242.24349603,0.00016438,2]
[400246635,1767216634079,-358.76,0.00016953,2]
[400246636,1767216634088,-273.6751712,0.00017765,2]
[400246637,1767216634098,-203.02005978,0.00018042,2]
[400246638,1767216634107,-448.45,0.00018164,2]
[400246639,1767216634116,-1041.66666667,0.0001822,2]
[400246641,1767216634125,-174.1,0.00018714,2]
[400246642,1767216634135,-919.96,0.000193,2]
[400246643,1767216634144,-538.13,0.00019375,2]
[400246644,1767216634153,-305.66317822,0.00019765,2]
[400246645,1767216634162,-174.1,0.00020413,2]
[400246646,1767216634172,-579.678194,0.00020548,2]
[400246647,1767216634181,-627.82,0.00020586,2]
[400246648,1767216634190,-219.21231561,0.00020821,2]
[400246649,1767216634199,-337.65118524,0.00021765,2]
[400246650,1767216634208,-717.51,0.00021796,2]
[400246651,1767216634218,-446.42236302,0.00021917,2]
[400246652,1767216634227,-803.56025343,0.00021917,2]
[400246653,1767216634236,-1428.55156165,0.00021917,2]
[400246654,1767216634246,-2232.11181508,0.00021917,2]
[400246655,1767216634255,-218.75596682,0.00021917,2]
[400246656,1767216634264,-393.76074027,0.00021917,2]
[400246657,1767216634274,-700.01909382,0.00021917,2]
[400246658,1767216634283,-500.0,0.00021917,2]
[400246659,1767216634292,-500.0,0.00021917,2]
[400246660,1767216634302,-212.08911604,0.00021917,2]
[400246662,1767216634312,-502.54902313,0.00021917,2]
[400246663,1767216634322,-480.00000001,0.00021917,2]
[400246664,1767216634331,-497.31389436,0.00021917,2]
[400246665,1767216634341,-500.0,0.00021917,2]
[400246666,1767216634350,-651.44,0.00021917,2]
[400246667,1767216634360,-1032.76,0.00021917,2]
[400246668,1767216634374,-3980.81,0.00021917,2]
[400246669,1767216634384,-500.0,0.00021917,2]
[400246670,1767216634393,-194.18521534,0.00021917,2]
[400246671,1767216634402,-5162.24,0.00021917,2]
[400246673,1767216634413,-500.0,0.00021917,2]
[400246674,1767216634423,-570.67,0.00021917,2]
[400246675,1767216634432,-1159.08,0.00021917,2]
[400246676,1767216634445,-500.0,0.00021917,2]
[400246677,1767216634454,-500.0,0.00021917,2]